Cogmind - Beta 13 @@@ ROGUE MODE // 2024.06.15 @ 18:59:04 Player: Minty Result: Destroyed by D-53 Grenadier with Mini Grenade Launcher Performance ------------- Evolutions (0) 0 Regions Visited (2) 400 Robots Destroyed (17) 85 Value Destroyed (366) 366 Prototype IDs (0) 0 Alien Tech Used (0) 0 Bonus (0) 0 TOTAL SCORE: 851 Bonus ------- None Cogmind --------- Core Integrity 0/250 Matter 214/300 Energy 95/100 System Corruption 0% Temperature Cool (76) Movement Rolling (100) Location -10/Mines Parts ------- > --- POWER (1) -------- (None) > --- PROPULSION (2) --- Compact Wheel > --- UTILITY (2) ------ Small Storage Unit > --- WEAPON (2) ------- Medium Laser Grenade Launcher > --- INVENTORY (8) ---- Ion Engine Wheel VTOL Module VTOL Module VTOL Module EM Pulse Gun EM Pulse Gun Medium Laser Peak State ------------ > --- POWER ------------ Ion Engine > --- PROPULSION ------- VTOL Module VTOL Module > --- UTILITY ---------- Small Storage Unit > --- WEAPON ----------- Medium Laser Medium Laser > --- INVENTORY -------- Ion Engine Wheel Compact Wheel VTOL Module VTOL Module EM Pulse Gun Light Assault Rifle Grenade Launcher [Rating: 9] Favorites ----------- Power Ion Engine Engine Ion Engine Propulsion Aluminum Leg Leg Aluminum Leg Wheel Compact Wheel Flight Unit VTOL Module Utility Small Storage Unit Storage Small Storage Unit Weapon Medium Laser Energy Gun Medium Laser Ballistic Gun Light Assault Rifle Launcher Grenade Launcher Build | -11 -10 -10 ------- Run | Yrd Mat Min Slots Evolved . | . . . Power . | . . . Propulsion . | . . . Utility . | . . . Weapon . | . . . Parts Attached 18 | . 15 3 Power 1 | . 1 . Engine 1 | . 1 . Core . | . . . Reactor . | . . . Propulsion 4 | . 4 . Treads . | . . . Leg . | . . . Wheel 1 | . 1 . Hover . | . . . Flight 3 | . 3 . Utility . | . . . Device . | . . . Storage . | . . . Processor . | . . . Hackware . | . . . Protection . | . . . Artifact . | . . . Weapon 13 | . 10 3 Energy Gun 9 | . 8 1 Energy Cannon . | . . . Ballistic Gun . | . . . Ballistic Cannon . | . . . Launcher 4 | . 2 2 Special Weapon . | . . . Impact Weapon . | . . . Slashing Weapon . | . . . Piercing Weapon . | . . . Special Melee Weapon . | . . . Unidentified Prototypes . | . . . Parts Lost 2 | . 1 1 Power 1 | . . 1 Propulsion 1 | . 1 . Utility . | . . . Weapon . | . . . Highest Loss Streak 1 | . 1 1 To Critical Strikes . | . . . Average Slot Usage (%) 79 | . 82 71 Engine 13 | . 12 14 Leg 11 | . 16 . Wheel 4 | . . 14 Flight 7 | . 10 . Storage 14 | . 14 14 Energy Gun 25 | . 25 23 Launcher 2 | . 1 4 Naked Turns . | . . . Heaviest Build 15 | 13 15 14 Greatest Support 20 | 20 20 16 Greatest Overweight (x) 3 | . 3 . Average Overweight (x) . | . . . Largest Inventory Capacity 8 | . 8 8 Average Capacity 8 | . 8 8 Most Carried 8 | . 8 8 Average Carried 7 | . 7 8 Final Capacity 8 | 8 8 8 Final Carried 8 | 6 8 8 Class Distribution -------------------- 100% | Mutant Dominant Class ---------------- Mutant | -10/Materials Mutant | -10/Mines Resources | -11 -10 -10 ----------- Run | Yrd Mat Min Matter Collected 386 | 200 147 39 Remotely . | . . . Salvage Created 398 | . 329 69 Parts 30 | . 24 6 Haulers Intercepted . | . . . Recyclers Shooed 1 | . 1 . Parts Field Recycled . | . . . Retrieved Matter . | . . . Parts Self-Destructed . | . . . Prevented . | . . . Kills | -11 -10 -10 ------- Run | Yrd Mat Min Combat Hostiles Destroyed 19 | . 9 10 Guns 8 | . 6 2 AOE 10 | . 2 8 Classes Destroyed 8 | . 5 3 Worker 1 | . 1 . Builder 1 | . 1 . Tunneler 1 | . . 1 Recycler 1 | . 1 . Swarmer 6 | . 3 3 Grunt 6 | . 6 . Demolisher 1 | . . 1 Assembled 6 | . . 6 Best Kill Streak 7 | . 4 7 Combat Bots Only 7 | . 3 7 Max Kills in Single Turn 3 | . 3 2 Gunslinging . | . . . Exploded 2 | . 1 2 Melee . | . . . Uniques/NPCs Destroyed . | . . . Combat | -11 -10 -10 -------- Run | Yrd Mat Min Hostile Shots Fired 59 | . 36 23 Missed 13 | . 9 4 Damage Taken 580 | . 259 321 Core 258 | . 67 191 Absorbed by Shields . | . . . Core Remaining (%) 100 | 100 . . Volleys Fired 44 | . 28 16 Largest 2 | . 2 2 Hottest 100 | . 100 100 Shots Fired 80 | . 48 32 Gun 69 | . 44 25 Cannon . | . . . Launcher 11 | . 4 7 Special . | . . . Kinetic . | . . . Thermal 64 | . 39 25 Explosive 11 | . 4 7 Electromagnetic 5 | . 5 . Robot Hit Streak 10 | . 5 10 Robot Miss Streak 9 | . 9 3 Penetration Max . | . . . Secondary Targets 1 | . 1 . Max Gunslinging Chain 1 | . 1 . Shots Hit Robots 42 | . 23 19 Core Hits 35 | . 21 14 Critical Kills . | . . . Critical Parts Destroyed . | . . . Critical Strikes 3 | . 3 . Burn 3 | . 3 . Melee Attacks . | . . . Impact . | . . . Slashing . | . . . Piercing . | . . . Sneak Attacks . | . . . Combat Hostiles . | . . . Follow-up Attacks . | . . . Damage Inflicted 1424 | . 717 707 Guns 435 | . 271 164 Cannons . | . . . Explosions 987 | . 444 543 Melee . | . . . Ramming 2 | . 2 . Kinetic . | . . . Thermal 572 | . 408 164 Explosive 820 | . 277 543 Electromagnetic 30 | . 30 . Impact . | . . . Slashing . | . . . Piercing . | . . . Highest Corruption . | . . . Average Corruption . | . . . Corruption Purged . | . . . Corruption Blocked . | . . . Overload Shots . | . . . Overflow Damage 87 | . 60 27 Projectiles . | . . . Explosions 87 | . 60 27 Melee . | . . . Knockbacks . | . . . Impact . | . . . Kinetic . | . . . Secondary . | . . . Self-Inflicted Damage 75 | . 1 74 Shots 3 | . . 3 Rammed 1 | . 1 . Targets Rammed 2 | . 2 . Kicked 1 | . 1 . Crushed . | . . . Highest Temperature 276 | . 276 195 Average Temperature 99 | . 117 68 Received Heat Transfer 78 | . 78 . Siege Activations . | . . . Robots Corrupted . | . . . Combat Hostiles . | . . . Parts Fried . | . . . Impact Corruptions . | . . . Robots Melted 1 | . 1 . Combat Hostiles 1 | . 1 . Parts Melted 4 | . 2 2 Heat Transferred 1606 | . 1125 481 Parts Sabotaged . | . . . Parts Stolen . | . . . Parts Stripped . | . . . Power Chain Reactions 1 | . 1 . Alert | -11 -10 -10 ------- Run | Yrd Mat Min Peak Influence 384 | . 384 296 Initial 149 | . . 149 Average 207 | . 199 226 Maximum Alert Level 1 | . 1 1 Low Security (%) 33 | . 39 16 Level 1 66 | . 60 83 Level 2 . | . . . Level 3 . | . . . Level 4 . | . . . Level 5 . | . . . High Security . | . . . Max Security . | . . . Squads Dispatched 3 | . 3 . Investigation 1 | . 1 . Extermination . | . . . Reinforcement 2 | . 2 . Assault . | . . . Garrison . | . . . Intercept . | . . . Searches Triggered . | . . . Construction Impeded . | . . . Haulers Reinforced . | . . . Active Scanning Responses . | . . . Cargo Convoy Interrupts . | . . . Stealth | -11 -10 -10 --------- Run | Yrd Mat Min Distress Signals . | . . . Communications Jammed . | . . . Distress Signals . | . . . Times Spotted 33 | . 15 18 Peak Tracking Total 12 | . 4 12 Tactical Retreats . | . . . Traps | -11 -10 -10 ------- Run | Yrd Mat Min Traps Triggered 1 | . 1 . Indirectly . | . . . Trap Hack Attempts . | . . . Triggered . | . . . Disarmed . | . . . Reprogrammed . | . . . Reused . | . . . Traps Extracted . | . . . Installed . | . . . Triggered . | . . . Machines | -11 -10 -10 ---------- Run | Yrd Mat Min Machines Disabled 3 | . 3 . Max in Single Turn 2 | . 2 . Machines Repaired . | . . . Machines Dismantled . | . . . Machines Sabotaged . | . . . Overloaded Fab Kills . | . . . Hacking | -11 -10 -10 --------- Run | Yrd Mat Min Machines Accessed . | . . . Terminals . | . . . Fabricators . | . . . Repair Stations . | . . . Recycling Units . | . . . Scanalyzers . | . . . Garrison Access . | . . . Total Hacks . | . . . Successful . | . . . Failed . | . . . Catastrophic . | . . . Database Lockouts . | . . . Manual . | . . . Terminals . | . . . Fabricators . | . . . Repair Stations . | . . . Recycling Units . | . . . Scanalyzers . | . . . Garrison Access . | . . . Terminal Hacks . | . . . Fabricator Hacks . | . . . Repair Station Hacks . | . . . Recycling Unit Hacks . | . . . Scanalyzer . | . . . Garrison Access Hacks . | . . . Unauthorized Hacks . | . . . Terminals . | . . . Fabricators . | . . . Repair Stations . | . . . Recycling Units . | . . . Scanalyzers . | . . . Garrison Access . | . . . Data Cores Recovered . | . . . Used . | . . . Hacking Detections . | . . . Full Trace Events . | . . . Feedback Events . | . . . Feedback Blocked . | . . . Robot Schematics Acquired . | . . . Robots Built . | . . . Authchips . | . . . Time . | . . . Total Robot Build Rating . | . . . Part Schematics Acquired . | . . . Parts Built . | . . . Authchips . | . . . Time . | . . . Total Part Build Rating . | . . . Parts Repaired . | . . . Time . | . . . Parts Recycled . | . . . Recycled Matter . | . . . Retrieved Matter . | . . . Retrieved Components . | . . . Parts Scanalyzed . | . . . Part Schematics Acquired . | . . . Parts Damaged . | . . . Bothacking | -11 -10 -10 ------------ Run | Yrd Mat Min Used RIF Installer . | . . . Robots Hacked . | . . . Non-combat . | . . . Combat . | . . . Robot Hacks Applied . | . . . Relay Couplers Released . | . . . Fabnet Peak Effective % . | . . . Robots Rewired . | . . . Allies Hacked . | . . . Hacks Repelled . | . . . Allies | -11 -10 -10 -------- Run | Yrd Mat Min Total Allies . | . . . Largest Group . | . . . Highest-Rated Group . | . . . Highest-Rated Ally . | . . . Total Orders . | . . . Ally Attacks . | . . . Total Damage . | . . . Kills . | . . . Allies Corrupted . | . . . Allies Melted . | . . . Intel | -11 -10 -10 ------- Run | Yrd Mat Min Robot Analysis Total . | . . . Derelict Logs Recovered . | . . . Drone Launches . | . . . Drone Recoveries . | . . . Exploration | -11 -10 -10 ------------- Run | Yrd Mat Min Turns Passed 363 | . 265 98 Spaces Moved 180 | 1 132 47 Core . | . . . Treads . | . . . Legs 76 | 1 75 . Wheels 58 | . 11 47 Hover . | . . . Flight 46 | . 46 . Fastest Speed 100 | 120 100 100 Average Speed 112 | 120 117 100 Slowest Speed 275 | 120 275 100 Overloaded Moves . | . . . Propulsion Burnouts . | . . . Robots Hopped . | . . . Cave-ins Triggered . | . . . Exploration Rate (%) 22 | 1 35 30 Regions Visited 2 Branch Regions 1 Pre-discovered Areas . | . . . Known Exits Taken . | . . . Unknown Exits Taken 2 | 1 1 . Scrap Searched . | . . . Spaces Dug . | . . . Terrain Destroyed 143 | . 94 49 Melee . | . . . Projectile . | . . . AOE 143 | . 94 49 Terrain Rammed . | . . . Walls Destroyed . | . . . Machines Disabled . | . . . Actions | -11 -10 -10 --------- Run | Yrd Mat Min Total 257 | . 191 66 Wait 1 | . 1 . Move 178 | . 131 47 Hop . | . . . Pick Up 4 | . 4 . Fast Attach 7 | . 7 . Attach . | . . . Detach 1 | . 1 . Swap 11 | . 8 3 Drop 9 | . 9 . Fire 44 | . 28 16 Melee . | . . . Ram 1 | . 1 . Kick 1 | . 1 . Crush . | . . . Escape Stasis . | . . . Rewire . | . . . Trap . | . . . Miscellaneous . | . . . Route ------- -11/Scrapyard -10/Materials -10/Mines History --------- Turn | Location | Event 1 | -11/Scrapyard | Discovered new exit (range 0) 1 | -11/Scrapyard | Entered Materials 260 | -10/Materials | Discovered new exit (range 6) 266 | -10/Materials | Entered Mines 314 | -10/Mines | Build established: Mutant 341 | -10/Mines | Assembled infested the area 352 | -10/Mines | Core integrity fell below 50% 361 | -10/Mines | Core integrity fell below 20% 364 | -10/Mines | Destroyed by D-53 Grenadier with Mini Grenade Launcher Last Messages --------------- 00341_ ALERT: Infestation in the mines, dispatching Demolisher response squad. 00345_ K-01 Serf collects debris. 00348_ as-43120 destroyed. 00349_ K-01 Serf collects debris. 00351_ as-02306 destroyed. 00351_ as-60683 destroyed. 00352_ K-01 Serf collects debris. 00353_ as-17196 destroyed. 00353_ as-65876 destroyed. 00354_ as-20012 destroyed. 00355_ The unstable cave ceiling collapses. 00357_ as-85295 destroyed. 00359_ The unstable cave ceiling collapses. 00359_ as-60906 destroyed. 00359_ as-37758 destroyed. 00360_ Ion Engine destroyed. 00360_ D-53 Grenadier destroyed. 00361_ The unstable cave ceiling collapses. 00363_ as-03942 destroyed. Map ----- +----------------------------------------------------+ | ????????????????????#####?# # ##?# #? | | ???????????????????## ### # [ * ## #? | | ??????????????????## * #? | | ?????????????????## #? | | ?????????????????# ### #?? | | ?????????????????# #?## ##?? | | ?????????????????## ##??##### ####??? | | ??????????????????#######???????### ##?????? | | ????????????????????????????######## ##?????? | | ???????????????????###?????## #### ##????? | | ???????????????????# #???## #?## ! #????? | | ???????????????????# #?## #??# ##???? | | ???????????????????# ## #??## ##??? | | ???????????????????# ##### ##?? | | ????????????????????# #?? | | ?????????????????????# ## #?? | | ?????????????????????## ######### # #?? | | ??????????????????????## #???????# ## ##?? | | ???????????????????????## ##??????# #?#####??? | | ????????????????????????## #??????# #????????? | | ?????????????#?????#???#### #?????? ????????? | | ?????????????# # ## ### ##?????? ????????? | | ??????????????# #???????"" ????????? | | ?????????????## ##??????""" "???????? | | ?????????????# % ##??????""" "???????? | | ?????????????# @ #??????? ???????? | | ???????????# ##????????? ???????? | | ?????????? #??????????#????????? | | ??????????? # #???????????????????? | | ??????????? d # ######???????????????????? | | ???????????? ##?????????????????????????? | | ???????????? # %????????????????????????????? | | ???????????? # ?????????????????????????????? | | ????????????? #??????????????????????????????? | | ?????????????# #????????????????????????????????? | | ??????????????#??????????????????????????????????? | | ?????????????????????????????????????????????????? | | ?????????????????????????????????????????????????? | | ?????????????????????????????????????????????????? | | ?????????????????????????????????????????????????? | | | | | | | | | | | | | | | | | | | | | +----------------------------------------------------+ Best States ------------- Heat Dissipation 25 Energy Generation 10 Energy Capacity 250 Matter Stores 300 Matter Capacity 300 Sight Range 16 Terrain Scan Density 10 Evasion (%) 55 Item Schematics ----------------- None Robot Schematics ------------------ None Fabricated ------------ Nothing Alien Tech Used ----------------- None Achievements -------------- None Challenges ------------ None Game ------ Seed HoverPulseMantle Manual? 0 Play Time 00:03:22 Cumulative 764.7 hours Start 2024.06.15 @ 18:56:33 End 2024.06.15 @ 18:59:04 Sessions 1 Manual Loads 0 Difficulty Rogue Special Mode None Game No. 862 Rogue 584 Adventurer 124 Explorer 154 Win Type - Total 29 Types 23/0/4/1/0/0/0/1/0 Lore% 84 Gallery% 92 Achievement% 77 Wizard Run 0 Options --------- Layout 0 ASCII 0 Keyboard 1 Movement Numpad Keybinds 0 Fullscreen 2 Font 18/Terminus Map View 76x50 Zoom Use 0% Tactical HUD 1 Map Filters NONE Filters SHIFT_HUE(360) Steam 1 RUN: 4e30856e-f81b-465d-b617-e6492e3669b8